bitfinex/quotes_ETHUSD_20241122
["timestamp","ask_amount","ask_price","bid_price","bid_amount"]
[1732249601205,0.1503011,3403.6,3403.5,0.70547882]
[1732249602129,0.1503011,3403.6,3403.2,0.2932]
[1732249602308,0.1503011,3403.6,3403.5,0.70547882]
[1732249602729,0.1503011,3403.6,3403.5,0.2932]
[1732249603034,2.45227634,3403.7,3402.9,0.41227882]
[1732249603035,1.17478929,3403.7,3403.6,1.1263]
[1732249603236,0.84958304,3403.7,3403.6,1.94325522]
[1732249603436,0.32520625,3403.7,3403.6,5.27633166]
[1732249603981,1e-08,3403.7,3403.6,5.27633166]
[1732249604181,1e-08,3403.7,3403.6,5.26633166]
[1732249604789,1e-08,3403.7,3403.6,4.94325522]
[1732249604956,1e-08,3403.7,3403.6,4.57441215]
[1732249605144,1e-08,3403.7,3403.6,1.12765522]
[1732249605343,1e-08,3403.7,3403.3,12.10307644]
[1732249605344,0.82280001,3403.7,3403.3,11.78]
[1732249606280,0.82280001,3403.7,3402.9,0.2932]
[1732249606492,0.4995,3405.0,3402.9,0.2932]
[1732249606642,0.4995,3405.0,3403.1,0.2932]
[1732249607178,0.4995,3405.0,3403.1,12.0732]
[1732249607549,0.4995,3405.0,3403.4,0.2932]
[1732249607901,0.4995,3405.0,3404.0,1.1263]
[1732249608189,0.4995,3405.0,3404.5,1.1263]
[1732249608345,0.4995,3405.0,3404.7,0.2932]
[1732249608541,0.4995,3405.0,3404.9,0.2932]
[1732249608741,0.4995,3405.0,3404.9,0.77835013]
[1732249609845,0.4995,3405.0,3404.9,1.88695374]
[1732249610043,0.7561,3406.9,3404.9,1.88695374]
[1732249610268,0.7561,3406.9,3405.5,3.2932]
[1732249610470,0.7561,3406.9,3405.7,0.2932]
[1732249610666,0.7561,3406.9,3405.9,0.2932]
[1732249610978,0.7561,3406.9,3406.0,0.41900847]
[1732249611482,0.7561,3406.9,3406.1,0.35533694]
[1732249611687,0.7561,3406.9,3406.2,0.41900847]
[1732249611883,0.7561,3406.9,3406.3,0.64853694]
[1732249612046,0.7561,3406.9,3406.4,0.41900847]
[1732249612401,0.7561,3407.4,3406.4,0.79559541]
[1732249612554,0.7561,3407.4,3406.5,0.37658694]
[1732249612755,0.7561,3407.4,3406.6,0.41900847]
[1732249613080,0.7561,3407.4,3406.7,0.39658694]
[1732249613399,0.7561,3407.4,3406.8,0.41900847]
[1732249613557,0.7561,3407.4,3406.9,0.39658694]
[1732249613773,0.7561,3407.4,3406.9,0.81559541]
[1732249614173,0.7561,3407.4,3405.2,0.34866452]
[1732249614174,0.01,3406.5,3405.7,0.35199785]
[1732249614359,0.7561,3406.4,3405.3,11.78]
[1732249615306,0.7561,3406.4,3403.7,0.8016]
[1732249615307,0.7561,3406.4,3404.7,3.6216]
[1732249615512,0.7561,3406.4,3404.8,0.209662]
[1732249615973,0.7561,3406.4,3404.9,0.20967266]
[1732249616174,0.7561,3406.4,3405.0,0.20967266]
[1732249616383,0.7561,3406.4,3404.8,3.20967266]
[1732249616701,0.1503011,3407.0,3405.2,0.8016]
[1732249617000,0.1503011,3407.0,3405.3,0.54101494]
[1732249617202,0.1503011,3407.0,3405.4,0.20967266]
[1732249617360,0.1503011,3407.0,3405.5,0.54101494]
[1732249617700,0.1503011,3407.0,3405.9,3.0]
[1732249617862,0.1503011,3407.0,3406.0,0.88428571]
[1732249618207,0.1503011,3407.0,3406.0,0.67461305]
[1732249618358,0.1503011,3407.0,3406.1,0.20944961]
[1732249618559,0.7561,3406.9,3405.3,0.33134228]
[1732249618802,0.01,3406.5,3405.1,2.59]
[1732249619007,0.7561,3406.4,3405.1,2.59]
[1732249620099,0.7561,3406.4,3405.2,3.20964194]
[1732249620318,0.7561,3406.4,3404.3,3.0]
[1732249620483,0.7561,3406.1,3404.4,0.20960261]
[1732249620808,0.7561,3405.8,3404.5,0.20960261]
[1732249620962,0.7561,3405.8,3404.2,11.78]
[1732249621160,0.7561,3405.8,3404.3,0.20969952]
[1732249621368,0.7561,3405.8,3403.0,12.12327077]
[1732249621369,0.7561,3405.4,3403.0,11.98703587]
[1732249621665,0.7561,3405.2,3403.0,11.4864]
[1732249622061,0.7561,3404.6,3403.0,11.4864]
[1732249622303,0.7561,3404.4,3402.3,8.67461305]
[1732249622470,0.7561,3404.2,3402.2,11.78]
[1732249622976,0.01,3404.0,3402.2,11.78]
[1732249623177,0.7561,3403.7,3401.7,1.172877]
[1732249623410,0.01,3403.6,3401.7,1.172877]
[1732249623575,0.7561,3403.5,3401.7,1.172877]
[1732249623763,0.7561,3403.5,3401.3,11.79880494]
[1732249623962,0.7561,3403.2,3401.4,0.33134228]
[1732249624205,0.4624,3403.0,3401.2,1.12040494]
[1732249624361,4.96508465,3404.7,3401.2,1.12040494]
[1732249624362,0.01,3404.7,3401.8,0.01]
[1732249624567,0.01,3404.7,3400.8,2.83]
[1732249624568,0.01,3405.7,3402.6,0.8016]
[1732249624867,0.02,3405.8,3402.6,0.8016]
[1732249625085,0.01,3405.6,3402.6,0.8016]
[1732249625308,0.01,3406.4,3403.2,0.8016]
[1732249625515,0.01,3406.5,3403.2,0.01]
[1732249625712,0.02,3406.2,3403.2,0.8016]
[1732249625866,0.01,3406.9,3403.7,0.8016]
[1732249626066,0.01,3405.9,3403.7,0.30687562]
[1732249626269,0.01,3404.9,3401.8,0.8016]
[1732249626499,0.01,3405.0,3401.8,12.2816]
[1732249626804,0.01,3404.7,3401.8,12.2816]
[1732249627102,0.02,3404.7,3401.8,0.8016]
[1732249627315,0.7561,3404.6,3401.8,0.8016]
[1732249627765,0.7561,3404.4,3401.8,0.8016]
[1732249627967,0.7561,3404.4,3402.2,0.01]
[1732249628216,0.7561,3404.4,3402.5,11.48]
[1732249628509,0.7561,3404.2,3402.5,11.48]
[1732249629119,0.7561,3404.2,3402.6,0.8016]
[1732249629423,0.7561,3404.0,3402.9,11.48]
[1732249629723,0.7561,3403.8,3402.9,11.48]
[1732249629880,0.7561,3403.8,3402.9,11.47435399]
[1732249630306,0.7561,3403.8,3401.5,12.2361]
[1732249630491,0.7561,3403.8,3401.6,3.0]
[1732249631100,0.7561,3403.8,3401.6,14.48]
[1732249632002,0.7561,3403.8,3401.7,0.8016]
[1732249633396,0.7561,3403.8,3401.8,0.21023107]
[1732249633598,0.7561,3403.8,3401.9,0.21023107]
[1732249633898,0.7561,3403.8,3402.0,0.21014966]
[1732249634099,0.7561,3403.8,3402.4,0.8067]
[1732249634326,0.7561,3403.8,3402.5,0.21014966]
[1732249634639,0.7561,3403.8,3402.6,0.21014966]
[1732249634936,0.7561,3403.8,3402.3,3.0]
[1732249635126,0.7561,3403.8,3402.4,0.50334267]
[1732249635436,0.7561,3403.8,3402.6,0.2932]
[1732249635732,0.7561,3403.8,3402.8,0.2932]
[1732249636801,0.7561,3403.8,3402.9,0.2932]
[1732249637959,0.7561,3403.8,3402.4,0.2932]
[1732249638304,0.7561,3403.8,3402.6,0.2932]
[1732249638538,0.7561,3403.8,3402.7,0.21001117]
[1732249638749,0.7561,3403.8,3402.8,0.2932]
[1732249639646,0.7561,3403.8,3402.9,0.2932]
[1732249640303,0.7761,3405.2,3403.1,0.2932]
[1732249640542,0.7761,3405.2,3403.0,0.8067]
[1732249640543,0.7999736,3405.2,3403.3,0.2932]
[1732249640749,0.7999736,3405.2,3403.5,0.2932]
[1732249640904,0.7999736,3405.2,3403.7,0.2932]
[1732249641106,0.7999736,3405.2,3404.1,0.2932]
[1732249641316,0.7999736,3405.2,3404.3,0.2932]
[1732249641542,0.7999736,3405.2,3404.5,0.2932]
[1732249642540,0.7999736,3405.2,3404.6,0.2932]
[1732249643566,0.7999736,3405.2,3404.8,0.2932]
[1732249644149,0.0238736,3405.2,3405.0,0.2932]
[1732249644447,3.35186538,3408.1,3405.5,0.01]
[1732249644630,0.02387139,3408.0,3405.5,0.01]
[1732249645048,0.02387139,3408.0,3405.7,0.01]
[1732249645260,0.02387139,3408.0,3405.8,0.01]
[1732249645421,0.02387139,3408.0,3405.8,0.03935194]
[1732249645629,0.02387139,3408.5,3405.8,0.03935194]
[1732249646776,0.02387139,3408.5,3406.6,0.01]
[1732249646977,0.02387139,3409.1,3406.9,0.01]
[1732249647127,0.02387139,3409.1,3406.9,0.02933987]
[1732249647554,0.754,3408.0,3406.7,0.2932]
[1732249647705,0.754,3407.8,3405.4,0.01]
[1732249647863,0.754,3407.7,3406.0,0.01]
[1732249648212,0.754,3407.7,3406.1,0.02016123]
[1732249648417,0.754,3407.7,3406.2,0.01]
[1732249648733,0.754,3407.7,3406.4,0.01]
[1732249649004,0.83908138,3407.6,3406.3,0.0201515]
[1732249649497,0.83908551,3407.5,3405.8,0.2932]
[1732249649703,0.83908551,3407.5,3405.9,0.02018162]
[1732249650075,0.83908551,3407.5,3405.8,0.2932]
[1732249650274,0.83908551,3407.5,3405.1,0.3133768]
[1732249650459,0.83908551,3407.5,3405.1,0.2932]
[1732249650662,0.8024,3407.3,3405.1,0.2932]
[1732249650910,0.8024,3407.1,3405.1,0.2932]
[1732249651064,0.8024,3406.9,3405.2,0.02019224]
[1732249651406,0.8024,3406.8,3405.2,0.02019224]
[1732249651604,0.83909962,3406.7,3404.8,0.02018794]
[1732249651791,0.8024,3406.7,3405.3,0.01]
[1732249651976,0.8024,3406.7,3405.4,0.020174]
[1732249652664,0.8024,3406.7,3405.5,0.01]
[1732249653005,0.8024,3406.7,3405.6,0.02017167]
[1732249653405,0.8024,3406.7,3405.3,0.02017095]
[1732249653564,0.8024,3406.7,3405.1,0.02018119]
[1732249653903,0.83909696,3406.6,3404.8,0.2932]
[1732249654463,0.83909696,3406.6,3404.0,0.01]
[1732249654659,0.83909696,3406.6,3404.1,0.02020457]
[1732249654873,0.83909696,3406.6,3404.5,0.01]
[1732249655115,0.83909696,3406.6,3404.7,0.01]
[1732249655414,0.8024,3406.6,3404.8,0.03019017]
[1732249655760,0.8024,3406.6,3405.0,0.01]
[1732249655963,0.8024,3406.6,3405.1,0.02018272]
[1732249656764,0.8024,3406.6,3405.2,0.01]
[1732249656962,0.8024,3406.6,3405.5,0.01]
[1732249657194,0.8024,3406.6,3405.6,0.02017114]
[1732249657562,0.03669164,3406.5,3404.8,0.03017202]
[1732249657785,0.8024,3406.4,3404.8,0.03017202]
[1732249658010,0.8024,3406.4,3405.2,0.01]
[1732249658213,0.8024,3406.4,3405.6,0.2932]
[1732249658363,0.8024,3406.4,3405.7,0.02017767]
[1732249658563,0.8024,3406.4,3405.6,0.2932]
[1732249658832,0.03669757,3406.3,3405.6,0.2932]
[1732249658966,0.8024,3406.4,3405.7,0.02018248]
[1732249659164,0.8024,3406.4,3405.2,0.02017819]
[1732249659416,0.8024,3406.4,3405.5,0.01]
[1732249659614,0.8024,3406.4,3405.6,0.01]
[1732249659777,0.05,3406.7,3406.4,0.01]
[1732249660129,0.8024,3408.1,3407.2,0.2932]
[1732249660962,0.8024,3408.1,3405.9,0.01916066]
[1732249661305,0.8024,3408.1,3405.7,0.32236771]
[1732249661476,0.8024,3408.1,3406.0,0.01916771]
[1732249662494,0.8024,3408.1,3406.1,0.01916354]
[1732249662961,0.8024,3408.1,3406.1,0.02916354]
[1732249663165,0.8024,3408.1,3406.4,0.01]
[1732249663405,0.8024,3408.1,3406.7,0.01]
[1732249663614,0.8024,3408.1,3407.5,0.2932]
[1732249664666,0.8024,3408.1,3406.9,0.01914324]
[1732249664862,0.8024,3408.1,3407.5,0.2932]
[1732249665104,0.8024,3408.1,3407.5,0.2432]
[1732249665792,0.8024,3408.1,3407.1,0.01913993]
[1732249665976,0.8024,3408.1,3407.1,0.02913993]
[1732249666310,0.8023,3408.7,3407.5,0.01]
[1732249666619,0.8023,3408.7,3407.6,0.01912965]
[1732249666968,0.8023,3408.7,3407.6,0.02912965]
[1732249667173,0.8023,3408.7,3407.7,0.1932]
[1732249667367,0.7023,3408.7,3407.8,0.01912955]
[1732249667563,0.7023,3408.7,3408.0,3.1932]
[1732249667775,0.7023,3408.7,3408.2,0.1932]
[1732249667976,0.7023,3408.7,3408.2,0.2123275]
[1732249668221,0.7023,3408.7,3408.2,0.1932]
[1732249668989,0.7023,3408.7,3408.0,0.01913005]
[1732249669222,0.7023,3408.7,3408.1,0.2932]
[1732249669425,0.7023,3408.7,3407.4,0.01]
[1732249669727,0.7023,3408.7,3407.3,0.53609856]
[1732249669878,0.7023,3408.7,3408.0,3.0]
[1732249670079,0.7023,3408.7,3408.2,0.2932]
[1732249671201,0.7023,3408.7,3406.8,0.36143706]
[1732249671434,0.8023,3408.5,3406.7,11.48]
[1732249671630,0.83898316,3408.4,3406.7,11.48]
[1732249672225,0.83898316,3408.4,3405.1,11.48]
[1732249672425,0.8023,3408.4,3405.2,0.50335422]
[1732249672767,0.8023,3408.2,3405.6,0.2932]
[1732249673069,0.8023,3408.0,3405.8,0.2932]
[1732249673362,0.8023,3408.0,3406.2,0.2932]
[1732249673529,0.8023,3408.0,3406.4,0.2932]
[1732249673733,0.8023,3408.0,3406.6,0.2932]
[1732249673928,0.8023,3408.0,3407.4,0.2932]
[1732249674163,0.5086,3408.0,3407.4,0.2932]
[1732249674360,0.5086,3408.0,3406.4,0.2932]
[1732249674559,0.5086,3408.0,3406.6,0.2932]
[1732249674727,0.5086,3408.0,3406.8,0.2932]
[1732249674922,0.5086,3408.0,3407.0,0.2932]
[1732249675222,0.5086,3408.0,3407.2,0.2932]
[1732249675420,0.5086,3408.0,3407.4,0.2932]
[1732249675769,0.5086,3408.0,3407.6,0.2932]
[1732249675937,0.03667685,3409.7,3407.7,0.20985108]
[1732249675938,0.8023,3408.6,3407.7,0.20985108]
[1732249676132,0.8023,3408.6,3407.8,0.2932]
[1732249677049,0.8023,3408.6,3407.9,0.2932]
[1732249677431,0.8023,3409.6,3407.9,0.2932]
[1732249677658,0.8023,3409.6,3406.3,0.02]
[1732249677659,0.8023,3409.4,3408.1,0.2932]
[1732249677895,0.8023,3409.2,3408.1,0.2932]
[1732249678109,0.83897368,3409.1,3408.1,0.2932]
[1732249678398,0.8023,3409.1,3408.1,0.2932]
[1732249678602,0.8023,3409.1,3408.2,0.2932]
[1732249679006,0.69203548,3409.1,3408.2,0.2932]
[1732249679619,0.69203548,3409.1,3407.4,0.2932]
[1732249679796,0.69203548,3409.1,3407.5,0.20965245]
[1732249679973,0.69203548,3409.1,3408.2,0.2932]
[1732249680882,0.69203548,3409.1,3407.4,0.2932]
[1732249681070,0.69203548,3409.1,3407.6,0.2932]
[1732249681265,0.69203548,3409.1,3407.8,0.2932]
[1732249681474,0.69203548,3409.1,3408.0,0.2932]
[1732249681807,0.69203548,3409.1,3408.2,0.2932]
[1732249682717,0.69203548,3409.1,3408.3,0.2932]
[1732249683606,0.69203548,3409.1,3407.3,0.8207]
[1732249683607,0.69203548,3409.1,3407.4,0.2932]
[1732249683793,0.69203548,3409.1,3408.4,0.2932]
[1732249684389,0.69203548,3409.1,3407.4,0.2932]
[1732249684591,0.69203548,3409.1,3407.6,0.2932]
[1732249684778,0.69203548,3409.1,3407.3,0.8207]
[1732249684779,0.69203548,3409.1,3407.8,0.2932]
[1732249684978,0.69203548,3409.1,3408.0,0.2932]
[1732249685204,0.69203548,3409.1,3407.3,0.8207]
[1732249685205,0.69203548,3409.1,3408.2,0.2932]
[1732249685429,0.8023,3409.0,3408.3,0.20968304]
[1732249685593,0.8023,3409.0,3408.4,0.2932]
[1732249686493,0.8023,3409.0,3408.0,0.2932]
[1732249686823,0.83896367,3408.9,3408.0,0.66816596]
[1732249687025,0.83896367,3408.9,3408.0,0.2932]
[1732249687322,0.83896367,3408.9,3407.3,11.48]
[1732249687323,0.83896367,3408.9,3406.8,0.2932]
[1732249688184,0.83896367,3408.9,3406.2,0.2932]
[1732249689410,0.84896367,3408.9,3406.2,0.2932]
[1732249689733,0.8254,3408.6,3406.3,0.2932]
[1732249689916,0.01,3407.9,3406.3,0.2932]
[1732249690128,0.86209909,3407.8,3406.3,0.2932]
[1732249690290,0.8254,3407.6,3406.3,0.2932]
[1732249690483,0.8254,3407.4,3406.4,0.2932]
[1732249690813,0.8254,3407.2,3406.4,0.2932]
[1732249691017,0.8254,3407.0,3406.4,0.2932]
[1732249691330,0.7536,3406.8,3406.4,0.2932]
[1732249691534,0.49628691,3408.4,3405.4,0.2932]
[1732249691535,0.7536,3406.7,3405.4,0.2932]
[1732249691827,0.7536,3408.0,3405.6,0.2932]
[1732249692030,0.7536,3407.8,3405.6,0.2932]
[1732249693187,0.7536,3408.7,3406.2,0.2932]
[1732249693385,0.36758001,3410.0,3406.2,0.2932]
[1732249693386,2.7052,3409.4,3407.0,0.2932]
[1732249693626,0.80346846,3409.3,3407.0,0.2932]
[1732249694302,0.80346846,3409.3,3407.1,0.02934589]
[1732249694502,0.03666155,3409.3,3408.1,0.2932]
[1732249695428,0.03666155,3409.9,3408.1,0.2932]
[1732249695586,0.03666155,3409.9,3407.7,0.03933776]
[1732249695787,0.03666155,3409.9,3407.7,0.02933776]
[1732249696104,0.03666155,3409.9,3407.4,0.2932]
[1732249696611,0.03666155,3409.9,3406.8,0.80203777]
[1732249696612,0.4423,3409.8,3407.5,0.2932]
[1732249696789,0.47896155,3409.7,3407.5,0.2932]
[1732249697231,0.4423,3409.5,3407.5,0.2932]
[1732249697430,0.47896155,3409.4,3407.5,0.2932]
[1732249697599,0.47896155,3409.4,3406.6,0.02934446]
[1732249698392,5.32044911,3410.0,3407.1,0.01]
[1732249698393,0.4423,3409.2,3407.1,0.01]
[1732249698593,0.47896155,3409.1,3407.3,0.01]
[1732249698929,0.47896155,3409.1,3406.9,0.01]
[1732249700132,0.47896155,3409.1,3406.6,0.02934833]
[1732249700133,0.47896155,3409.1,3407.3,0.01]
[1732249701301,0.47896155,3409.1,3407.5,0.01]
[1732249701500,0.03666155,3409.1,3407.5,0.03933961]
[1732249701732,0.03666155,3409.5,3407.9,0.01]
[1732249701931,0.4423,3409.4,3407.9,0.01]
[1732249702137,0.03666155,3409.3,3407.9,0.01]
[1732249702688,0.4423,3409.4,3407.9,0.01]
[1732249702897,0.4423,3409.4,3408.2,0.01]
[1732249703206,0.03666155,3409.3,3407.6,0.3032]
[1732249703420,0.4423,3409.2,3407.6,0.2932]
[1732249703625,0.47896155,3409.1,3407.6,0.2932]
[1732249704206,0.47896155,3409.1,3407.7,0.2932]
[1732249704606,0.4423,3409.1,3407.7,0.32253903]
[1732249704816,0.4423,3409.1,3407.7,0.02933903]
[1732249705018,0.4423,3409.1,3407.9,0.01]
[1732249705231,0.4423,3409.1,3407.6,0.01]
[1732249705435,0.03666155,3409.0,3407.6,0.03933913]
[1732249705619,0.4423,3409.1,3407.6,0.03933913]
[1732249705825,0.03666155,3409.0,3407.6,0.03933913]
[1732249706022,0.4423,3409.8,3408.0,0.01]
[1732249706249,0.03666155,3409.7,3408.0,0.02933312]
[1732249706466,0.4423,3409.6,3408.0,0.01]
[1732249706654,0.03666155,3409.5,3408.1,0.01]
[1732249707053,0.03666155,3409.5,3407.9,0.02933314]
[1732249707258,0.4423,3409.4,3407.9,0.2932]
[1732249707551,0.4423,3409.2,3407.9,0.2932]
[1732249707721,0.47896155,3409.2,3407.9,0.2932]
[1732249707932,0.03666155,3409.1,3407.9,0.2932]
[1732249708127,0.4254614,3409.1,3407.6,0.01]
[1732249708545,0.4254614,3409.1,3408.1,0.169]
[1732249713126,0.4254614,3409.1,3408.3,0.0448]
[1732249714264,0.4254614,3409.1,3407.5,0.0548]
[1732249714430,0.4254614,3409.1,3407.5,0.08414313]
[1732249714957,0.4254614,3409.1,3407.5,0.0548]
[1732249715160,0.4254614,3409.1,3408.0,2.7058]
[1732249715329,0.4254614,3409.1,3407.6,0.02934072]
[1732249715654,0.4254614,3409.1,3407.7,0.01]
[1732249716030,0.4254,3409.9,3407.7,0.03933942]
[1732249716257,0.4254,3409.9,3408.1,0.01]
[1732249717364,0.4254,3409.9,3407.9,0.01]
[1732249717569,0.4254,3409.9,3408.1,0.01]
[1732249717716,0.4254,3409.9,3407.9,0.01]
[1732249717921,0.4254,3409.9,3408.1,0.01]
[1732249718416,0.4254,3409.9,3407.6,0.02933607]
[1732249718417,0.4254,3409.9,3408.4,0.01]
[1732249718620,0.4254,3409.9,3408.4,0.03933348]
[1732249719016,0.4254,3409.9,3408.4,0.02933348]
[1732249719322,0.4254,3409.9,3408.4,0.03933348]
[1732249719530,0.4254,3409.9,3408.4,0.02933348]
[1732249719861,0.4254,3409.9,3408.4,0.2932]
[1732249720719,0.35758001,3410.0,3408.2,0.03933504]
[1732249720918,0.4254,3409.9,3408.7,0.2932]
[1732249721238,0.4254,3409.9,3409.0,0.2932]
[1732249722035,0.4254,3409.9,3408.4,0.01]
[1732249723568,0.4254,3409.9,3408.6,0.01]
[1732249723726,0.4254,3409.9,3408.6,0.03933036]
[1732249723927,0.4254,3409.9,3408.6,0.01]
[1732249726448,0.4254,3409.9,3409.2,0.2932]
[1732249727468,0.35758001,3410.0,3408.6,0.0393304]
[1732249727469,0.35758001,3410.0,3409.3,0.2932]
[1732249727786,0.35758001,3410.0,3409.5,0.2932]
[1732249727787,0.78298001,3410.0,3409.5,0.2932]
[1732249728747,0.78298001,3410.0,3409.3,0.2932]
[1732249729158,0.48928001,3410.0,3409.3,0.2932]
[1732249729476,0.06388001,3410.0,3409.4,0.02932653]
[1732249729650,0.06388001,3410.0,3409.3,0.33252653]
[1732249730077,0.06388001,3410.0,3409.6,0.01]
[1732249730694,0.06388001,3410.0,3409.8,0.2932]
[1732249731298,0.06388001,3410.0,3409.9,0.03932184]
[1732249732000,0.06388001,3410.0,3409.8,0.2932]
[1732249732297,0.06388001,3410.0,3409.7,0.2932]
[1732249732451,0.06388001,3410.0,3409.7,0.3032]
[1732249732953,0.06388001,3410.0,3409.7,0.2932]
[1732249733147,0.06388001,3410.0,3409.8,0.2932]
[1732249733395,0.06388001,3410.0,3409.9,0.01]
[1732249733692,0.06388001,3410.0,3409.9,1.93814142]
[1732249734263,3.0,3413.2,3410.1,0.3032]
[1732249734468,3.4793505,3413.2,3410.4,0.01]
[1732249735065,0.4793505,3413.2,3410.6,0.01]
[1732249735264,2.22598615,3413.9,3410.6,0.01]
[1732249735265,0.78474555,3413.1,3410.7,0.2932]
[1732249735492,2.7563,3413.6,3410.7,0.2932]
[1732249735695,0.695104,3413.1,3410.9,0.2932]
[1732249735967,0.695104,3413.1,3410.9,0.73660134]
[1732249736192,0.695104,3413.1,3411.1,0.2932]
[1732249737281,0.695104,3413.1,3410.9,0.2932]
[1732249737479,0.695104,3413.1,3411.1,0.73660134]
[1732249737679,0.695104,3413.1,3411.3,0.2932]
[1732249737975,0.695104,3413.1,3411.5,0.2932]
[1732249739107,0.695104,3413.1,3411.6,0.2932]
[1732249739962,0.695104,3413.1,3411.2,0.2932]
[1732249740166,0.695104,3413.1,3411.4,0.2932]
[1732249740575,0.695104,3413.1,3411.6,0.2932]
[1732249741646,0.695104,3413.1,3411.4,0.2932]
[1732249741852,0.695104,3413.1,3410.4,0.7747]
[1732249741853,3.0,3412.9,3410.4,0.7747]
[1732249742054,0.8063209,3412.8,3410.5,0.76826801]
[1732249742203,0.695104,3413.1,3410.5,0.76826801]
[1732249742404,3.695104,3413.1,3410.5,0.76826801]
[1732249743359,0.695104,3413.1,3410.7,0.01]
[1732249743509,0.695104,3413.1,3410.8,0.47414035]
[1732249743713,0.695104,3413.1,3410.9,0.2932]
[1732249744238,0.695104,3413.1,3410.9,1.21170517]
[1732249744406,0.695104,3413.1,3411.0,0.2932]
[1732249744610,0.52659053,3413.0,3411.0,0.2932]
[1732249745544,0.52659053,3413.0,3410.7,0.2932]
[1732249745545,3.25589053,3413.0,3410.7,0.2932]
[1732249745703,1.22169453,3413.0,3410.7,0.2932]
[1732249745908,0.42216945,3412.9,3410.9,0.2932]
[1732249746135,0.695104,3413.0,3411.1,0.2932]
[1732249746343,0.695104,3413.0,3411.3,0.2932]
[1732249746550,0.695104,3413.0,3411.5,0.2932]
[1732249746759,0.695104,3413.0,3411.9,0.2932]
[1732249746965,0.695104,3413.0,3412.3,0.2932]
[1732249747113,0.695104,3413.0,3412.5,0.2932]
[1732249747446,0.695104,3413.0,3412.7,0.2932]
[1732249747631,0.695104,3413.0,3412.7,0.74846273]
[1732249748236,0.695104,3413.0,3412.7,0.2932]
[1732249748425,0.695104,3413.0,3412.4,0.7751]
[1732249748426,0.695104,3413.0,3412.5,0.2932]
[1732249748750,0.695104,3413.0,3412.0,0.2932]
[1732249749051,0.695104,3413.0,3412.2,0.2932]
[1732249749259,0.695104,3413.0,3412.4,0.2932]
[1732249749558,0.695104,3413.0,3412.4,0.74829949]
[1732249749778,0.695104,3413.0,3412.7,0.01]
[1732249749930,0.695104,3413.0,3412.9,1.0683]
[1732249750262,0.695104,3413.0,3412.9,1.53339949]
[1732249750437,0.695104,3413.0,3412.9,1.95286667]
[1732249750618,0.695104,3413.0,3412.9,1.16776667]
[1732249750959,0.695104,3413.0,3412.9,1.94286667]
[1732249751362,2.02311711,3413.9,3413.3,0.2932]
[1732249751533,2.02311711,3413.9,3413.5,0.3032]
[1732249751732,2.02311711,3413.9,3413.7,0.3032]
[1732249751932,0.35651711,3413.9,3413.8,1.17776667]
[1732249752159,25.0,3414.0,3413.9,0.45040357]
[1732249752465,25.0,3414.0,3413.9,2.04034941]
[1732249752466,22.39119706,3414.0,3413.9,2.04034941]
[1732249752616,21.94505131,3414.0,3413.9,1.96179418]
[1732249754215,21.94505131,3414.0,3413.9,1.66859418]
[1732249755033,21.94505131,3414.0,3413.9,4.66859418]
[1732249755360,19.23166096,3414.0,3413.9,1.69788093]
[1732249755659,19.23166096,3414.0,3413.9,1.65025252]
[1732249755660,16.50904642,3414.0,3413.9,1.65025252]
[1732249755859,15.04607732,3414.0,3413.9,1.65025252]
[1732249756032,11.95269378,3414.0,3413.9,1.13319385]
[1732249756233,0.1508554,3414.4,3413.9,1.13319385]
[1732249756234,0.1508554,3414.4,3414.3,0.01]
[1732249756676,0.1508554,3414.4,3413.9,0.67557791]
[1732249756677,0.1508554,3414.4,3413.6,0.01]
[1732249757083,0.8196,3414.3,3412.8,11.49]
[1732249757284,0.8196,3414.3,3413.0,0.01]
[1732249757576,0.8196,3414.3,3413.2,0.01]
[1732249758169,0.8196,3414.3,3413.6,0.01]
[1732249758678,0.8196,3414.3,3413.1,0.01]
[1732249758679,0.1508554,3414.4,3414.0,0.02]
[1732249758849,0.1508554,3414.4,3414.1,0.37822903]
[1732249759048,0.1508554,3414.4,3414.0,0.35809154]
[1732249759243,0.1508554,3414.4,3414.0,0.72632057]
[1732249759580,0.1508554,3414.4,3414.0,0.71632057]
[1732249759945,0.1508554,3414.4,3414.2,0.01]
[1732249760191,0.1508554,3414.4,3414.0,0.71632057]
[1732249760340,0.1508554,3414.4,3413.9,0.01]
[1732249760674,0.1508554,3414.4,3414.2,0.01]
[1732249760878,0.1508554,3414.4,3413.3,0.02928798]
[1732249760879,0.1508554,3414.4,3413.3,0.01]
[1732249761048,0.1508554,3414.4,3413.0,0.02]
[1732249761049,0.8196,3414.3,3413.0,0.02]
[1732249761876,0.1508554,3414.4,3412.1,0.7009]
[1732249762091,0.1508554,3414.4,3411.4,0.02929653]
[1732249762092,0.47689604,3414.3,3411.5,0.7009]
[1732249762241,0.47689604,3414.3,3411.9,0.35559154]
[1732249762585,0.84890192,3414.2,3411.5,0.65593992]
[1732249762751,0.8196,3414.0,3411.6,0.37473095]
[1732249762938,0.8196,3413.8,3411.7,0.34542903]
[1732249763143,0.84890192,3413.7,3411.7,0.34542903]
[1732249763468,0.84890192,3413.7,3411.8,0.38489618]
[1732249763664,0.84890192,3413.7,3411.8,0.73032521]
[1732249764167,0.84890192,3413.7,3411.9,0.2932]
[1732249764374,0.8196,3413.7,3412.0,0.02930109]
[1732249764684,0.8196,3413.7,3412.2,0.2932]
[1732249764846,0.8196,3413.7,3412.4,0.2932]
[1732249765181,0.1508554,3414.4,3412.5,0.0292979]
[1732249765182,0.8196,3414.2,3412.5,0.0292979]
[1732249765486,0.8196,3414.2,3412.8,0.2932]
[1732249765642,0.8196,3414.2,3413.0,0.2932]
[1732249765842,0.8196,3414.2,3413.2,0.2932]
[1732249766142,0.1508554,3414.4,3413.1,0.38488302]
[1732249766143,0.1508554,3414.4,3413.4,0.2932]